bitfinex/quotes_ETHUSD_20220226
["timestamp","ask_amount","ask_price","bid_price","bid_amount"]
[1645845702739,0.00487856,2793.1,2793.0,0.21275496]
[1645845702938,0.00487856,2793.1,2793.0,0.63775496]
[1645845703637,0.00487861,2793.2,2793.0,0.63775496]
[1645845704482,0.28131617,2793.3,2793.0,0.63775496]
[1645845704881,0.00487856,2793.2,2793.0,0.63775496]
[1645845705780,0.28131617,2793.3,2793.0,0.63775496]
[1645845705981,0.00487856,2793.2,2793.0,0.63775496]
[1645845706987,0.28131617,2793.3,2793.0,0.53775496]
[1645845707187,0.00487853,2793.2,2793.0,0.53775496]
[1645845708221,0.28131617,2793.3,2793.0,0.53775496]
[1645845708422,0.00487853,2793.2,2793.0,0.53775496]
[1645845709423,0.28131617,2793.3,2793.0,0.53775496]
[1645845709625,0.00487853,2793.2,2793.0,0.53775496]
[1645845710625,0.28131617,2793.3,2793.0,0.53775496]
[1645845710825,0.00487854,2793.2,2793.0,0.53775496]
[1645845711873,0.28131617,2793.3,2793.0,0.53775496]
[1645845712069,0.00487854,2793.2,2793.0,0.53775496]
[1645845713076,0.28131617,2793.3,2793.0,0.53775496]
[1645845713273,0.00487854,2793.2,2793.0,0.53775496]
[1645845713472,0.00487854,2793.2,2793.0,0.11275496]
[1645845713671,0.00487854,2793.2,2792.9,0.74900077]
[1645845714273,0.28131617,2793.3,2792.9,0.74900077]
[1645845714476,0.00487859,2793.2,2792.9,0.74900077]
[1645845715517,0.28131617,2793.3,2792.9,0.74900077]
[1645845715718,0.00487859,2793.2,2792.9,0.74900077]
[1645845715919,0.00487859,2793.2,2792.9,1.17400077]
[1645845716119,0.00487859,2793.2,2792.9,2.47400077]
[1645845716319,0.00487859,2793.2,2793.0,0.16461032]
[1645845716520,0.28131617,2793.3,2793.0,0.58961032]
[1645845716924,0.00487859,2793.2,2793.0,0.58961032]
[1645845717124,0.00487859,2793.2,2793.1,1.0]
[1645845717321,0.00487859,2793.2,2793.1,1.15361164]
[1645845717722,0.28131617,2793.3,2793.1,1.15361164]
[1645845718022,0.28619465,2793.3,2793.1,1.15361164]
[1645845719026,0.28131617,2793.3,2793.1,1.15361164]
[1645845719267,0.28131617,2793.3,2793.1,0.15361164]
[1645845719268,0.2861946,2793.3,2793.1,0.15361164]
[1645845719467,0.2861946,2793.3,2793.0,0.64438837]
[1645845720269,0.28131617,2793.3,2793.0,0.64438837]
[1645845720469,0.28619465,2793.3,2793.0,0.64438837]
[1645845721273,0.28131617,2793.3,2793.0,0.64438837]
[1645845721674,0.28619465,2793.3,2793.0,0.64438837]
[1645845722674,0.28131617,2793.3,2793.0,0.64438837]
[1645845722923,0.28619465,2793.3,2793.0,0.64438837]
[1645845723727,0.28131617,2793.3,2793.0,0.64438837]
[1645845724224,0.28619465,2793.3,2793.0,0.64438837]
[1645845725029,0.28131617,2793.3,2793.0,0.64438837]
[1645845725228,0.28619465,2793.3,2793.0,0.64438837]
[1645845726227,0.28131617,2793.3,2793.0,0.64438837]
[1645845726429,0.28619465,2793.3,2793.0,0.64438837]
[1645845727480,0.28131617,2793.3,2793.0,0.64438837]
[1645845727675,0.28131617,2793.3,2793.0,4.34078051]
[1645845727676,0.28319514,2793.3,2793.0,4.34078051]
[1645845727877,0.28319514,2793.3,2793.1,3.75029992]
[1645845728079,0.00751475,2793.7,2793.2,13.61759915]
[1645845728276,0.00751475,2793.7,2793.3,19.69593528]
[1645845728277,0.00671475,2793.7,2793.3,19.69593528]
[1645845728476,0.00671475,2793.7,2793.4,11.54820133]
[1645845728677,0.00410131,2794.6,2793.5,0.28075761]
[1645845728877,1.48310042,2794.5,2793.6,0.50063536]
[1645845729080,0.35960131,2794.6,2793.7,0.07563536]
[1645845729279,0.35960131,2794.6,2793.6,0.91157607]
[1645845729480,0.35960131,2794.6,2794.2,1.11885246]
[1645845729679,0.3555,2794.6,2794.2,1.11885246]
[1645845730722,1.49078707,2794.5,2794.2,1.11885246]
[1645845731426,1.48926235,2794.5,2794.2,1.11885246]
[1645845732431,1.48926235,2794.5,2794.2,12.60120023]
[1645845732432,0.00547886,2794.5,2794.2,12.60120023]
[1645845732828,0.00547886,2794.5,2794.2,17.35150015]
[1645845733029,0.00547886,2794.5,2794.3,0.19650549]
[1645845733230,0.00547886,2794.5,2794.4,0.425]
[1645845733430,0.00410131,2795.4,2794.3,3.75029992]
[1645845733431,0.1431,2795.3,2794.3,3.75029992]
[1645845733632,1.16403248,2795.2,2794.3,3.75029992]
[1645845733834,0.3555,2795.0,2794.3,3.75029992]
[1645845734033,0.1431,2794.9,2794.3,3.75029992]
[1645845734279,0.3555,2794.6,2794.3,3.75029992]
[1645845734484,1.13562278,2794.7,2793.8,0.25]
[1645845734485,3.9986,2794.5,2793.8,0.25]
[1645845734680,3.9986,2794.5,2792.9,0.6772654]
[1645845734681,1.02976032,2794.3,2792.9,0.6772654]
[1645845734884,1.02976032,2794.3,2792.8,0.6772654]
[1645845734885,0.3555,2794.1,2792.8,0.6772654]
[1645845735086,0.3555,2793.9,2792.8,0.6772654]
[1645845735287,0.1431,2793.8,2792.9,0.6772654]
[1645845736188,0.1431,2793.9,2792.9,0.6772654]
[1645845736385,0.1431,2793.9,2792.9,0.1772654]
[1645845736585,0.3555,2794.0,2792.7,1.06974894]
[1645845736785,0.3555,2793.8,2792.7,1.06974894]
[1645845736985,0.3555,2793.8,2792.8,0.89943956]
[1645845737185,0.00547693,2793.6,2792.8,0.89943956]
[1645845737385,0.00547693,2793.6,2792.8,1.10646647]
[1645845738232,0.3555,2793.8,2792.7,1.08884648]
[1645845738431,0.00516807,2793.6,2792.7,1.08884648]
[1645845738731,0.00516807,2793.6,2792.8,0.89943956]
[1645845738930,0.00516807,2793.6,2792.8,1.07159824]
[1645845739332,0.3555,2793.8,2792.8,0.57159824]
[1645845739532,0.3555,2793.8,2792.5,2.63678533]
[1645845739731,0.00516807,2793.6,2792.5,2.99218661]
[1645845739933,0.00516807,2793.6,2792.6,0.20482688]
[1645845740534,0.3555,2793.8,2792.6,0.20482688]
[1645845740934,0.005168,2793.6,2792.6,0.20482688]
[1645845741810,0.3555,2793.8,2792.6,0.20482688]
[1645845742213,0.005168,2793.6,2792.6,0.20482688]
[1645845742412,0.005168,2793.6,2792.5,2.34161221]
[1645845742610,0.005168,2793.6,2792.5,1.33678533]
[1645845742811,0.005168,2793.6,2792.5,1.54907453]
[1645845743013,3.8555,2793.8,2792.5,1.54907453]
[1645845743212,0.02594275,2793.6,2792.5,0.00310919]
[1645845743613,0.1431,2793.5,2792.5,0.00310919]
[1645845744211,0.3555,2793.3,2792.5,0.00310919]
[1645845744413,0.3555,2793.1,2792.5,0.00310919]
[1645845744712,0.3555,2793.1,2792.1,3.39720455]
[1645845744913,3.8555,2793.0,2792.2,0.00310662]
[1645845745313,3.8555,2793.0,2791.5,0.02077007]
[1645845745314,0.1431,2792.9,2791.5,0.02077007]
[1645845745526,0.1431,2792.9,2791.4,1.13446974]
[1645845745725,0.1431,2792.9,2791.9,0.0051915]
[1645845745924,1.52822736,2792.8,2791.9,0.0051915]
[1645845746223,0.3555,2792.6,2791.9,0.0051915]
[1645845746738,0.3555,2792.6,2791.3,3.69943614]
[1645845746929,0.3555,2792.4,2791.3,3.69943614]
[1645845747936,0.3555,2792.3,2791.3,3.69943614]
[1645845748234,0.3555,2792.3,2791.4,0.00332665]
[1645845748430,0.3555,2792.3,2791.5,0.90259114]
[1645845748830,0.4986,2792.6,2791.5,0.90259114]
[1645845749030,0.4986,2792.6,2791.6,0.90259114]
[1645845749296,0.3555,2792.6,2791.6,0.90259114]
[1645845749597,0.3555,2792.6,2791.5,1.11551009]
[1645845749797,0.3555,2792.6,2791.5,0.90259114]
[1645845749999,0.3555,2792.6,2791.5,1.11434467]
[1645845750296,0.3555,2792.6,2791.5,0.90259114]
[1645845750498,0.00547675,2792.2,2791.6,0.90259114]
[1645845751400,0.3555,2792.6,2791.6,0.90259114]
[1645845751599,0.3555,2792.6,2791.7,0.00309343]
[1645845751801,0.00547693,2792.0,2791.7,0.00309343]
[1645845752000,0.00547693,2792.0,2791.6,0.90259114]
[1645845752400,0.00547693,2792.0,2791.6,0.21487308]
[1645845752602,0.3555,2792.6,2791.5,1.0623258]
[1645845752801,0.3555,2792.6,2791.6,0.00309343]
[1645845753032,0.3555,2792.6,2791.4,1.11357395]
[1645845753235,3.6431,2792.7,2791.4,1.11357395]
[1645845753236,3.5,2792.5,2791.4,1.11357395]
[1645845753440,7.2384,2792.7,2791.4,1.11357395]
[1645845754141,0.001855,2792.2,2791.6,1.06467692]
[1645845754339,0.001855,2792.2,2791.7,0.90568457]
[1645845754540,0.001855,2792.2,2791.7,0.18798333]
[1645845754742,0.001855,2792.2,2791.5,1.0907504]
[1645845754939,3.5,2792.6,2791.6,0.90259114]
[1645845755141,3.2398,2792.7,2791.6,1.10812096]
[1645845755340,0.001855,2792.1,2791.7,0.00309343]
[1645845755540,0.001855,2792.1,2791.4,1.10945054]
[1645845756142,3.8555,2792.6,2791.5,0.90259114]
[1645845756341,3.8555,2792.6,2791.6,0.00309343]
[1645845756679,0.00516163,2791.9,2791.6,0.00309343]
[1645845756883,0.00516163,2791.9,2791.7,1.20730333]
[1645845757286,0.00516163,2791.9,2791.4,0.90775375]
[1645845757485,3.8555,2792.6,2791.4,1.07751748]
[1645845757683,0.3555,2792.6,2791.5,0.00309343]
[1645845757886,0.00500238,2791.9,2791.5,0.00309343]
[1645845758085,0.00500238,2791.9,2791.4,1.0825209]
[1645845758684,0.00500238,2791.9,2791.7,1.17372155]
[1645845758886,0.00500254,2791.8,2791.7,1.38814453]
[1645845759887,0.1431,2792.6,2791.7,1.38814453]
[1645845760087,0.00500243,2791.9,2791.5,0.00309343]
[1645845760287,0.00500243,2791.9,2791.4,1.12689456]
[1645845761128,0.1431,2792.6,2791.7,1.36728474]
[1645845761330,0.00482907,2791.8,2791.7,1.54723766]
[1645845762330,0.1431,2792.6,2791.7,1.54723766]
[1645845762531,0.0048461,2791.9,2791.7,1.54723766]
[1645845762733,0.0048461,2791.9,2791.7,1.55033109]
[1645845763031,0.0048461,2791.9,2791.7,1.54723766]
[1645845763233,0.0048461,2791.9,2791.4,1.08488868]
[1645845763434,0.1431,2792.6,2791.4,1.08488868]
[1645845763435,0.1431,2792.6,2791.4,1.43554166]
[1645845763634,0.1431,2792.6,2791.5,1.10763169]
[1645845763832,0.00484605,2791.9,2791.6,0.00309343]
[1645845764035,0.00484605,2791.9,2791.4,1.07798688]
[1645845764277,0.00484605,2791.9,2791.6,0.15455695]
[1645845764478,0.00484605,2791.9,2791.4,1.11432915]
[1645845764681,3.3829,2792.7,2791.4,1.1094821]
[1645845764879,0.00485711,2791.9,2791.5,0.00309343]
[1645845765080,0.00485711,2791.9,2791.4,1.11434013]
[1645845765682,0.00485711,2791.9,2791.5,2.25259999]
[1645845765985,6.8829,2792.7,2791.5,1.55250743]
[1645845766186,0.00486191,2791.8,2791.6,0.00309343]
[1645845766384,0.00486191,2791.8,2791.5,2.45509857]
[1645845766984,6.8829,2792.7,2791.5,2.45509857]
[1645845767184,3.3829,2792.7,2791.6,0.00309343]
[1645845767385,0.00486191,2791.8,2791.6,0.00309343]
[1645845767586,0.00486191,2791.8,2791.5,2.45509857]
[1645845768232,3.3829,2792.7,2791.5,2.45509857]
[1645845768432,0.00486102,2791.8,2791.6,0.00309343]
[1645845768631,0.00486102,2791.8,2791.5,2.45509857]
[1645845769536,6.8829,2792.7,2791.5,2.45509857]
[1645845769734,0.0034987,2791.8,2791.6,0.00309343]
[1645845769934,0.0034987,2791.8,2791.5,2.45509857]
[1645845770340,0.00179484,2791.8,2791.6,0.90259114]
[1645845770638,3.3829,2792.7,2791.6,1.06147479]
[1645845770835,3.3829,2792.7,2791.7,0.00309343]
[1645845771880,3.8555,2792.6,2791.7,0.00309343]
[1645845772081,0.00188266,2792.3,2791.7,0.00309343]
[1645845772380,0.00188266,2792.3,2791.5,1.53509985]
[1645845772980,3.7384,2792.7,2791.5,2.43769099]
[1645845772981,3.3829,2792.7,2791.5,2.43769099]
[1645845773182,3.3829,2792.7,2791.6,0.00309343]
[1645845773381,0.00519014,2792.0,2791.6,0.00309343]
[1645845773583,0.00519014,2792.0,2791.5,1.53200642]
[1645845774183,3.3829,2792.7,2791.5,1.53200642]
[1645845774384,3.3829,2792.7,2791.6,0.00309343]
[1645845774582,0.00519023,2791.9,2791.6,0.00309343]
[1645845774783,0.00519023,2791.9,2791.5,0.18199757]
[1645845774983,0.00519023,2791.9,2791.5,0.90259114]
[1645845775283,0.00519023,2791.9,2791.5,1.06885607]
[1645845775535,3.3829,2792.7,2791.5,1.06885607]
[1645845775738,0.0051769,2791.9,2791.6,1.22450082]
[1645845775940,0.0051769,2791.9,2791.7,0.00309343]
[1645845776239,0.0051769,2791.9,2791.6,1.22140739]
[1645845776544,0.0051769,2791.9,2791.6,2.12399853]
[1645845776738,0.3555,2792.6,2791.6,2.12399853]
[1645845776940,0.00517693,2791.9,2791.7,0.90568457]
[1645845777141,0.00517693,2791.9,2791.6,2.12399853]
[1645845777343,0.00517693,2791.9,2791.7,0.90259114]
[1645845777940,3.2398,2792.7,2791.7,0.90259114]
[1645845778141,0.00517697,2791.9,2791.8,0.00309343]
[1645845778342,0.00517697,2791.9,2791.7,0.90259114]
[1645845778741,0.00517697,2791.9,2791.8,0.90259114]
[1645845779174,3.2398,2792.7,2791.8,0.90259114]
[1645845779375,3.2398,2792.7,2791.9,0.90568457]
[1645845779577,3.2398,2792.7,2791.9,0.90259114]
[1645845780579,0.00517726,2792.4,2791.9,0.90259114]
[1645845781579,3.2398,2792.7,2791.9,0.90259114]
[1645845781783,0.00517744,2792.3,2791.9,0.90259114]
[1645845782480,0.00517744,2792.3,2792.0,0.90259114]
[1645845782683,3.2398,2792.7,2792.0,0.90259114]
[1645845782938,0.00517743,2792.2,2792.0,0.90259114]
[1645845783930,3.2398,2792.7,2792.0,0.90259114]
[1645845784130,0.00517743,2792.2,2792.1,0.90259114]
[1645845784832,0.00517743,2792.2,2792.1,0.90547799]
[1645845785032,0.49369996,2792.8,2792.1,0.90547799]
[1645845785232,1.51071855,2792.7,2791.9,0.90547799]
[1645845785431,1.51071855,2792.7,2792.0,0.90547799]
[1645845786238,0.49369996,2792.8,2792.1,0.90547799]
[1645845786672,0.00517714,2792.5,2792.1,0.90547799]
[1645845787077,0.00517714,2792.5,2792.2,0.90547799]
[1645845787479,0.49369996,2792.8,2792.2,0.90547799]
[1645845787681,1.51262611,2792.7,2792.2,0.90547799]
[1645845787978,0.00517714,2792.5,2792.2,0.90547799]
[1645845788778,0.49369996,2792.8,2792.3,0.90547799]
[1645845788978,0.00517466,2792.5,2792.3,0.90547799]
[1645845789381,0.00517466,2792.5,2792.2,0.90547799]
[1645845790178,0.00517176,2792.5,2792.2,0.90547799]
[1645845790627,0.00517176,2792.5,2792.1,0.90547799]
[1645845791226,0.49369996,2792.8,2792.1,0.90547799]
[1645845791425,1.51283224,2792.7,2792.2,0.90547799]
[1645845791628,0.00517182,2792.4,2792.2,0.90547799]
[1645845792134,0.00517182,2792.4,2792.1,0.90547799]
[1645845792331,0.49369996,2792.8,2792.0,0.90547799]
[1645845792530,0.00517182,2792.4,2792.1,0.90547799]
[1645845793531,0.13819996,2792.8,2792.1,2.12931315]
[1645845793733,1.51270176,2792.7,2792.1,2.12931315]
[1645845793933,0.00517207,2792.4,2792.2,0.90547799]
[1645845794179,0.00517207,2792.4,2792.1,2.12931315]
[1645845794378,0.00429224,2792.4,2792.1,2.12931315]
[1645845794883,0.13819996,2792.8,2792.2,0.90547799]
[1645845795080,1.51295854,2792.7,2792.2,0.90547799]
[1645845796282,1.51295854,2792.7,2792.1,0.90547799]
[1645845797392,1.51295854,2792.7,2791.4,0.3555]
[1645845797393,0.01228396,2792.2,2791.4,0.91247288]
[1645845797594,0.01231671,2791.5,2790.9,1.34269425]
[1645845797792,6.93795854,2791.4,2790.8,0.9073583]
[1645845798036,0.3555,2791.1,2790.4,0.9073583]
[1645845798336,0.3555,2791.1,2790.2,0.25]
[1645845798338,1.24894952,2790.6,2790.2,0.25]
[1645845798536,1.36572332,2790.0,2789.7,1.29167816]
[1645845798743,1.51295854,2789.9,2789.7,1.29167816]
[1645845799141,3.8555,2789.8,2789.7,1.29167816]
[1645845799336,5.36845854,2789.8,2789.4,0.007]
[1645845799540,0.3555,2789.8,2789.4,0.007]
[1645845799741,1.50902332,2790.0,2789.4,0.007]
[1645845799945,1.36572332,2790.0,2789.4,0.007]
[1645845800345,3.5,2789.9,2789.4,0.007]
[1645845800741,0.3555,2789.9,2789.4,0.007]
[1645845801137,0.3555,2789.9,2789.5,0.00329133]
[1645845801343,0.78567746,2789.9,2789.5,0.00329133]
[1645845801786,0.6555,2789.9,2789.5,0.00329133]
[1645845801987,1.72122332,2790.0,2789.4,0.007]
[1645845802188,1.36572332,2790.0,2789.4,0.007]
[1645845802390,1.36572332,2790.0,2789.6,0.00545432]
[1645845803191,1.36572332,2790.0,2789.4,0.007]
[1645845803590,1.36572332,2790.0,2789.7,0.0054542]
[1645845804389,1.36572332,2790.0,2789.4,0.007]
[1645845804590,1.36572332,2790.0,2789.7,0.00545414]
[1645845805194,0.3555,2789.9,2789.7,0.00545414]
[1645845805448,1.36572332,2790.0,2789.7,0.00545414]
[1645845805736,1.36572332,2790.0,2789.4,0.007]
[1645845805938,1.36572332,2790.0,2789.7,0.0054542]
[1645845806838,1.36572332,2790.0,2789.4,0.007]
[1645845807040,1.36572332,2790.0,2789.7,0.00545414]
[1645845807945,1.36572332,2790.0,2789.4,0.007]
[1645845808342,1.36572332,2790.0,2789.7,0.00545414]
[1645845809187,1.36572332,2790.0,2789.6,1.35413644]
[1645845809591,1.36572332,2790.0,2789.7,0.00545414]
[1645845810397,1.36572332,2790.0,2789.4,0.007]
[1645845811195,1.36572332,2790.0,2789.4,1.0576911]
[1645845812306,1.36572332,2790.0,2789.4,0.007]
[1645845813137,1.36572332,2790.0,2789.6,0.00545432]
[1645845813438,1.36572332,2790.0,2789.6,1.24831604]
[1645845813641,1.36572332,2790.0,2789.6,0.00545432]
[1645845814039,1.36572332,2790.0,2789.4,0.007]
[1645845814337,1.36572332,2790.0,2789.6,0.0054544]
[1645845815338,1.36572332,2790.0,2789.4,0.007]
[1645845815541,1.36572332,2790.0,2789.6,0.0054544]
[1645845816542,1.36572332,2790.0,2789.4,1.1042327]
[1645845816785,1.36572332,2790.0,2789.6,0.0054544]
[1645845817586,1.36572332,2790.0,2789.4,0.007]
[1645845817987,1.36572332,2790.0,2789.6,0.0054544]
[1645845818787,1.36572332,2790.0,2789.4,0.007]
[1645845820444,1.66572332,2790.0,2789.4,0.007]
[1645845820937,0.3555,2789.8,2789.4,0.007]
[1645845821137,0.3555,2789.6,2789.4,0.007]
[1645845822839,1.4881,2789.9,2789.4,0.01245091]
[1645845823637,4.9881,2789.9,2789.4,0.007]
[1645845823843,4.9881,2789.9,2788.6,0.0030832]
[1645845823844,0.00953132,2789.3,2788.6,0.0030832]
[1645845824190,0.00953132,2789.3,2788.2,3.7168754]
[1645845824191,0.36503132,2789.3,2788.2,3.7168754]
[1645845824487,3.8555,2789.2,2788.2,3.7168754]
[1645845824688,0.1434,2789.1,2788.2,3.7168754]
[1645845825687,0.4989,2789.1,2788.2,3.7168754]
[1645845825891,0.7989,2789.1,2788.2,3.5168754]
[1645845826301,0.3555,2788.8,2788.5,0.0054483]
[1645845826491,0.3555,2788.8,2788.2,3.0223237]
[1645845826492,4.9801,2788.8,2788.2,3.0223237]
[1645845826692,0.3555,2788.6,2788.2,3.0223237]
[1645845826992,0.6555,2788.6,2788.2,3.0223237]
[1645845827593,0.3555,2788.8,2788.2,3.0223237]
[1645845827796,0.6555,2788.8,2788.2,3.0223237]
[1645845828041,4.1555,2788.8,2788.2,3.0223237]
[1645845828441,0.1434,2788.7,2788.2,3.0223237]
[1645845829243,0.6555,2788.8,2788.2,3.0223237]
[1645845829642,0.6555,2788.8,2788.2,2.4223237]
[1645845830346,4.1555,2788.8,2788.2,2.4223237]
[1645845830546,15.1689,2788.8,2788.2,2.4223237]
[1645845830765,16.1689,2788.8,2788.2,2.4223237]
[1645845830942,1.7989,2788.8,2788.2,2.4223237]
[1645845831248,0.3555,2788.5,2788.4,0.00544603]
[1645845831442,0.3555,2788.5,2788.4,4.603e-05]
[1645845831443,4.9206,2788.5,2788.4,4.603e-05]
[1645845831681,10.2206,2788.5,2788.4,4.603e-05]
[1645845831884,6.2206,2788.5,2788.4,4.603e-05]
[1645845832085,2.5772,2788.5,2788.2,2.4223237]
[1645845832285,2.5772,2788.5,2787.5,0.00307102]
[1645845832286,0.3555,2788.2,2787.5,0.00307102]
[1645845832488,0.3555,2787.9,2786.4,0.00307102]
[1645845832687,0.1434,2787.8,2787.2,0.61941871]
[1645845832888,1.3115,2787.8,2787.2,0.61941871]
[1645845833090,1.3115,2787.8,2787.3,3.5]
[1645845833091,1.1681,2787.8,2787.3,3.5]
[1645845833286,2.9939,2788.2,2787.2,0.61941871]
[1645845833486,2.9939,2788.2,2787.3,0.00307102]
[1645845833890,2.9939,2788.2,2787.9,1.07837327]
[1645845834086,0.4989,2788.7,2787.3,0.00307102]
[1645845834290,11.6689,2788.7,2787.3,0.00307102]
[1645845834487,6.4577,2788.7,2787.1,0.00307102]
[1645845834691,6.4577,2788.7,2786.8,0.00307102]
[1645845834890,0.3555,2788.5,2786.8,0.00307102]
[1645845835099,0.3555,2788.3,2786.9,1.09358317]
[1645845835296,0.1434,2788.2,2787.0,0.00307102]
[1645845835546,0.1434,2788.2,2786.9,0.59665419]
[1645845836553,0.3555,2788.1,2787.4,0.0054278]
[1645845836749,1.040634,2788.2,2787.4,0.0054278]
[1645845836750,1.696134,2788.2,2787.4,0.0054278]
[1645845836948,0.6,2788.2,2787.4,0.0054278]
[1645845837350,0.3,2788.2,2786.9,0.59665419]
[1645845837549,0.4434,2788.3,2786.9,0.59665419]
[1645845837751,11.3689,2788.3,2786.7,2.6202]
[1645845837950,0.3,2788.0,2786.3,1.1924]
[1645845838151,0.3555,2787.8,2786.3,1.1924]
[1645845838352,0.1434,2787.7,2786.3,1.1924]
[1645845838954,0.1434,2787.7,2786.6,1.16027333]
[1645845841291,0.1434,2787.7,2787.0,0.00527783]
[1645845841495,1.9383626,2787.7,2787.0,0.00527783]
[1645845841696,0.3555,2787.6,2787.0,0.00527783]
[1645845841890,0.1434,2787.5,2787.0,0.00527783]
[1645845842089,0.3555,2787.4,2787.0,0.00527783]
[1645845842291,10.87,2787.2,2785.8,1.26727954]
[1645845842492,10.87,2787.2,2785.9,0.25306026]
[1645845842493,14.8689,2787.1,2785.9,0.25306026]
[1645845842690,14.8689,2787.1,2785.9,0.20306026]
[1645845842691,15.1689,2787.1,2785.9,0.20306026]
[1645845842929,12.6689,2787.1,2785.9,0.20306026]
[1645845843132,0.3555,2787.0,2785.9,0.20306026]
[1645845843335,0.3555,2786.8,2785.9,0.20306026]
[1645845843539,0.3555,2786.6,2785.9,0.00306026]
[1645845843738,0.3555,2786.4,2785.5,0.00306026]
[1645845843941,0.3555,2786.2,2785.5,0.00306026]
[1645845844141,0.3555,2786.2,2785.3,0.00306026]
[1645845844142,0.3555,2786.0,2785.3,0.00306026]
[1645845844341,0.3555,2785.8,2785.2,0.25]
[1645845844539,0.3555,2785.8,2783.9,2.7215]
[1645845844540,0.3555,2785.6,2784.4,0.05316026]
[1645845844740,1.5713,2785.6,2784.4,0.0001]
[1645845844940,0.3555,2785.4,2784.4,0.0001]
[1645845845140,3.8555,2785.3,2784.4,0.0001]
[1645845845341,3.5,2785.2,2784.4,0.0001]
[1645845845541,0.1436,2785.1,2784.4,0.0001]
[1645845845740,11.2255,2785.0,2784.4,0.0001]
[1645845845944,0.1436,2784.9,2784.4,0.0001]
[1645845846143,0.1436,2784.9,2784.7,0.00511491]
[1645845846341,0.6,2785.3,2784.7,0.00511491]
[1645845846342,0.1436,2785.3,2784.7,0.00511491]
[1645845846541,1.1465,2785.4,2784.7,0.00511491]
[1645845846805,6.8492,2785.6,2784.7,0.00511491]
[1645845846806,3.56911821,2785.6,2784.7,0.00511491]
[1645845847010,2.42811821,2785.6,2784.2,0.47169246]
[1645845847205,2.42811821,2785.6,2785.5,1.07885759]
[1645845847406,2.42811821,2785.6,2784.3,1.36268794]
[1645845847407,0.53940102,2785.4,2784.3,1.36268794]
[1645845847605,0.53940102,2785.4,2784.4,1.0]
[1645845847811,0.53940102,2785.4,2784.4,1.11049208]
[1645845848110,7.9276,2786.7,2784.9,5.0]
[1645845848111,2.4471,2786.7,2784.9,5.0]
[1645845848315,0.01278525,2787.1,2785.0,0.425]
[1645845848316,0.1435,2787.0,2785.0,0.425]
[1645845848610,5.4776,2787.2,2785.0,12.2603761]
[1645845848611,3.6434,2787.2,2785.0,12.2603761]
[1645845848808,3.5,2787.1,2785.3,0.19266306]
[1645845849007,0.14457557,2787.2,2785.3,1.00035306]
[1645845849210,0.3555,2786.9,2785.2,1.1646]
[1645845849409,0.1434,2786.8,2785.2,1.5851803]
[1645845849612,0.00117557,2787.2,2785.2,1.65870774]
[1645845849808,0.00117557,2787.2,2785.3,0.20895214]
[1645845850215,0.00117557,2787.2,2785.4,0.78244237]
[1645845850449,0.00117557,2787.2,2785.8,5.0]
[1645845850639,0.00117557,2787.2,2785.9,0.425]
[1645845850838,0.00117557,2787.2,2785.5,1.0]
[1645845851039,0.00117557,2787.2,2785.7,0.18400446]
[1645845851240,0.00117557,2787.2,2786.2,1.24343903]
[1645845851439,0.4989,2787.1,2786.2,1.24343903]
[1645845851741,0.4989,2787.1,2785.7,0.08127695]
[1645845851742,16.2255,2786.9,2785.7,0.08127695]
[1645845851945,3.925,2787.0,2785.7,0.08127695]
[1645845851946,4.0684,2786.8,2785.7,0.08127695]
[1645845852142,3.2956,2787.0,2785.7,0.08127695]
[1645845852143,1.3555,2786.9,2785.7,0.08127695]
[1645845852345,0.3,2786.8,2786.1,0.08127088]
[1645845852540,0.1434,2786.8,2786.2,1.32648628]
[1645845852940,1.30117557,2787.0,2786.2,1.32648628]
[1645845852941,0.14457557,2787.0,2786.2,1.32648628]
[1645845853140,0.00117557,2787.0,2786.2,1.32648628]
[1645845854976,0.00117557,2787.0,2786.8,1.11065079]
[1645845855876,0.00117557,2787.0,2786.3,0.07670667]
[1645845856681,0.00117557,2787.0,2786.2,0.00304604]
[1645845856881,0.00117557,2787.0,2786.3,1.20191143]
[1645845857084,0.00117557,2787.0,2786.8,1.03164631]
[1645845859956,0.10414146,2787.9,2786.4,0.21469565]
[1645845860154,0.00117557,2787.0,2786.5,0.00304604]
[1645845860359,0.00117557,2787.0,2786.3,0.00304604]
[1645845860555,0.00117557,2787.0,2786.3,0.07760599]
[1645845861557,0.00117557,2787.0,2786.3,0.00304604]
[1645845862492,7.557e-05,2787.0,2786.4,6.71752351]
[1645845862692,7.557e-05,2787.0,2786.9,5.0]
[1645845862887,7.557e-05,2787.0,2786.9,5.76170931]
[1645845863087,7.557e-05,2787.0,2786.9,6.87784408]
[1645845863390,7.557e-05,2787.0,2786.9,7.725]
[1645845863686,7.557e-05,2787.0,2786.9,2.725]
[1645845863887,7.557e-05,2787.0,2786.9,0.5685]
[1645845864286,7.557e-05,2787.0,2786.9,1.5685]
[1645845864687,7.557e-05,2787.0,2786.9,12.4385]
[1645845864890,7.557e-05,2787.0,2786.9,20.9385]
[1645845865090,7.557e-05,2787.0,2786.9,16.9385]
[1645845865288,7.557e-05,2787.0,2786.9,24.3725]
[1645845865541,7.557e-05,2787.0,2786.9,23.32942774]
[1645845865741,0.00190886,2788.1,2787.6,1.0]
[1645845865945,0.00190886,2788.1,2787.9,0.5]
[1645845866140,0.00190886,2788.1,2787.7,1.1434]
[1645845866345,0.3555,2789.1,2787.5,1.9918]
[1645845866546,1.8713413,2789.0,2787.6,0.00304385]
[1645845866745,0.00512915,2788.1,2787.6,0.00304385]
[1645845866944,0.00512915,2788.1,2787.5,1.9918]
[1645845867443,0.00953132,2789.3,2787.5,1.9918]
[1645845867444,0.1434,2789.2,2787.6,0.3555]
[1645845867749,1.51577254,2789.1,2787.7,3.8555]
[1645845867947,0.00529514,2788.1,2787.7,3.50304385]
[1645845868147,0.00529514,2788.1,2787.8,0.00304385]
[1645845868347,0.00529514,2788.1,2787.9,1.33114003]
[1645845868848,0.1434,2789.2,2787.9,1.33114003]
[1645845869047,0.0052952,2788.1,2787.9,1.33114003]
[1645845869280,0.0052952,2788.1,2787.8,1.06503707]
[1645845869481,0.0052952,2788.1,2787.8,1.06199322]
[1645845869981,1.23853132,2789.3,2787.9,0.3555]
[1645845870183,0.00529525,2788.1,2787.9,3.50304385]
[1645845870387,0.00529525,2788.1,2787.8,1.06199322]
[1645845871188,0.1434,2789.2,2787.8,1.06199322]
[1645845871389,1.51575147,2789.1,2788.3,1.0142268]
[1645845871689,1.59403132,2789.3,2787.7,3.8555]
[1645845871690,0.1434,2789.0,2787.7,3.8555]
[1645845871886,1.61675847,2788.2,2787.8,0.00304385]
[1645845872086,1.61675847,2788.2,2787.6,0.00304385]